bitfinex/quotes_SOLUSD_20240612
["timestamp","ask_amount","ask_price","bid_price","bid_amount"]
[1718210603950,0.34,158.95,158.89,13.907]
[1718210604277,0.34,158.95,158.91,7.61]
[1718210604957,0.34,158.96,158.91,7.61]
[1718210607874,0.17,158.93,158.85,6.297]
[1718210608074,0.34,158.93,158.89,13.907]
[1718210608378,0.34,158.93,158.89,7.61]
[1718210610073,0.34,158.93,158.9,7.61]
[1718210610377,15.2153,158.94,158.9,7.61]
[1718210610561,0.34,158.93,158.83,6.297]
[1718210610761,15.2153,158.94,158.89,7.61]
[1718210610965,15.2153,158.94,158.9,7.61]
[1718210611158,15.2153,158.94,158.91,7.61]
[1718210613355,15.2153,158.94,158.9,7.61]
[1718210616664,15.2153,158.94,158.91,7.61]
[1718210617559,0.34,158.93,158.89,7.61]
[1718210618180,0.34,158.93,158.9,7.61]
[1718210618386,15.2153,158.94,158.91,7.61]
[1718210619978,15.2153,158.94,158.9,7.61]
[1718210622278,15.2153,158.94,158.91,7.61]
[1718210624978,15.2153,158.94,158.92,7.61]
[1718210625566,7.61,158.98,158.92,7.61]
[1718210625567,0.17,158.97,158.92,7.61]
[1718210625765,0.68,158.97,158.92,7.61]
[1718210625974,0.68,158.97,158.93,7.61]
[1718210626362,16.5176,158.99,158.94,7.61]
[1718210627682,0.17,158.98,158.94,7.61]
[1718210628676,0.34,158.98,158.94,7.61]
[1718210628986,0.17,158.98,158.95,7.61]
[1718210629170,16.5176,158.99,158.95,7.61]
[1718210630295,0.68,158.98,158.88,6.0125]
[1718210630588,0.17,158.96,158.91,7.61]
[1718210630969,0.34,158.96,158.91,7.61]
[1718210631568,0.17,158.96,158.92,7.61]
[1718210631779,0.34,158.97,158.92,7.61]
[1718210632184,0.34,158.97,158.88,19.9195]
[1718210632482,0.34,158.98,158.94,7.61]
[1718210632677,0.17,158.95,158.83,21.4071]
[1718210632889,0.51,158.95,158.9,7.61]
[1718210633977,0.51,158.95,158.84,6.297]
[1718210634170,0.51,158.95,158.9,7.61]
[1718210637582,0.51,158.95,158.91,7.61]
[1718210638875,100.0,158.98,158.91,7.61]
[1718210639076,7.61,158.97,158.92,7.61]
[1718210639597,7.61,158.97,158.91,7.61]
[1718210640196,0.17,158.96,158.91,7.61]
[1718210640412,0.34,158.96,158.91,7.61]
[1718210641288,0.17,158.96,158.91,7.61]
[1718210641598,8.12,158.97,158.91,7.61]
[1718210641802,8.12,158.97,158.85,0.17]
[1718210641991,8.12,158.97,158.91,7.61]
[1718210643182,0.51,158.97,158.92,7.61]
[1718210647313,16.5176,158.99,158.89,6.297]
[1718210647496,16.5176,158.99,158.94,7.61]
[1718210647681,16.5176,158.99,158.96,7.61]
[1718210647886,107.64926659,159.02,158.96,7.61]
[1718210648381,7.61,159.01,158.95,7.61]
[1718210649089,0.17,159.0,158.94,7.61]
[1718210649288,0.34,159.01,158.94,7.61]
[1718210650207,2.6669,159.01,158.89,12.6555]
[1718210650425,24.1566,158.98,158.9,7.55191738]
[1718210650615,0.17,158.96,158.9,7.55191738]
[1718210650793,8.12,158.97,158.91,7.61]
[1718210650994,0.17,158.97,158.92,7.61]
[1718210651714,0.17,158.96,158.89,6.3585]
[1718210651921,0.17,158.96,158.9,7.55192639]
[1718210654324,0.51,158.97,158.9,7.55192639]
[1718210654492,16.3766,158.98,158.93,7.61]
[1718210655005,16.3766,158.98,158.94,7.61]
[1718210655590,100.0,159.01,158.94,7.61]
[1718210655903,107.61,159.01,158.96,7.61]
[1718210656104,107.61,159.01,158.95,7.61]
[1718210656608,7.61,159.01,158.95,7.61]
[1718210656807,0.17,159.0,158.95,7.61]
[1718210657113,0.34,159.0,158.95,7.61]
[1718210659708,0.17,159.0,158.95,7.61]
[1718210659892,8.29,159.01,158.95,7.61]
[1718210660817,7.61,159.0,158.95,7.61]
[1718210661818,8.29,159.01,158.95,7.61]
[1718210662001,7.61,159.0,158.95,7.61]
[1718210662501,16.0152,158.97,158.88,20.75861656]
[1718210662701,23.6252,158.97,158.91,7.61]
[1718210662907,23.6252,158.97,158.88,20.75861656]
[1718210663224,23.6252,158.97,158.92,7.61]
[1718210663937,16.0152,158.97,158.92,7.61]
[1718210664594,16.0152,158.97,158.92,13.907]
[1718210665123,16.0152,158.97,158.92,7.61]
[1718210665520,16.0152,158.97,158.92,13.907]
[1718210666226,16.0152,158.97,158.88,28.36861656]
[1718210666394,16.0152,158.97,158.89,7.5519588]
[1718210666600,23.6252,158.97,158.92,6.297]
[1718210667433,16.0152,158.97,158.88,20.75861656]
[1718210667616,23.6252,158.97,158.91,13.907]
[1718210668025,23.6252,158.97,158.91,7.61]
[1718210668630,16.0152,158.97,158.92,7.61]
[1718210670108,16.0152,158.97,158.93,6.297]
[1718210670525,16.0152,158.97,158.92,7.61]
[1718210671739,0.17,158.99,158.94,7.61]
[1718210672225,7.61,159.0,158.94,7.61]
[1718210673403,0.17,158.97,158.92,7.61]
[1718210673622,0.17,158.97,158.89,6.297]
[1718210673825,0.34,158.97,158.92,13.907]
[1718210674426,0.34,158.97,158.92,7.61]
[1718210675137,0.17,158.97,158.92,7.61]
[1718210675634,0.17,158.98,158.93,7.61]
[1718210675849,0.34,158.98,158.93,7.61]
[1718210676307,0.17,158.98,158.94,7.61]
[1718210676509,0.34,158.99,158.94,7.61]
[1718210676732,0.17,158.99,158.94,7.61]
[1718210676917,0.34,158.99,158.94,7.61]
[1718210677314,7.95,158.99,158.93,7.61]
[1718210679038,7.78,158.98,158.93,7.61]
[1718210679225,0.34,158.97,158.93,7.61]
[1718210680238,0.17,158.98,158.93,7.61]
[1718210680469,0.34,158.98,158.93,7.61]
[1718210682811,0.34,158.99,158.94,7.61]
[1718210683122,0.17,158.99,158.94,7.61]
[1718210683330,0.34,158.99,158.94,7.61]
[1718210683840,15.8582,158.98,158.94,7.61]
[1718210684033,7.78,158.96,158.9,7.61]
[1718210684250,0.51,158.95,158.9,7.61]
[1718210684547,8.12,158.95,158.9,7.61]
[1718210684925,0.51,158.95,158.9,7.61]
[1718210685251,0.17,158.95,158.9,7.61]
[1718210685424,0.17,158.96,158.91,7.61]
[1718210685625,0.51,158.96,158.85,11.79721581]
[1718210685937,0.51,158.96,158.91,7.61]
[1718210686646,8.12,158.96,158.9,7.61]
[1718210687558,0.51,158.96,158.9,7.61]
[1718210687874,8.12,158.96,158.9,7.61]
[1718210688339,0.17,158.95,158.9,7.61]
[1718210693153,0.17,158.95,158.85,11.79721581]
[1718210693366,0.17,158.94,158.89,13.907]
[1718210693530,0.34,158.94,158.89,13.907]
[1718210693733,0.34,158.94,158.85,11.79721581]
[1718210693936,0.34,158.94,158.89,7.61]
[1718210694246,0.34,158.94,158.89,13.907]
[1718210694564,0.34,158.94,158.89,7.61]
[1718210695229,0.34,158.94,158.89,13.907]
[1718210695551,0.34,158.94,158.85,11.79721581]
[1718210695859,0.34,158.94,158.89,7.61]
[1718210696059,0.34,158.94,158.85,11.79721581]
[1718210696356,0.34,158.94,158.89,13.907]
[1718210696561,0.34,158.94,158.85,11.79721581]
[1718210696855,0.34,158.94,158.89,7.61]
[1718210697433,0.34,158.94,158.89,13.907]
[1718210697635,0.34,158.94,158.85,11.79721581]
[1718210697851,0.34,158.94,158.89,7.61]
[1718210698453,0.34,158.94,158.85,11.79721581]
[1718210698755,0.34,158.94,158.89,13.907]
[1718210699771,0.34,158.94,158.85,11.79721581]
[1718210700060,0.34,158.94,158.89,7.61]
[1718210700652,0.34,158.94,158.89,13.907]
[1718210700848,0.34,158.94,158.89,7.61]
[1718210701175,0.17,158.93,158.89,7.61]
[1718210701633,0.34,158.93,158.89,7.61]
[1718210701833,0.34,158.93,158.89,13.907]
[1718210704158,6.5615,158.97,158.92,7.61]
[1718210704363,106.5985,159.01,158.93,7.61]
[1718210704562,106.5985,159.01,158.94,7.61]
[1718210704744,7.61,159.0,158.94,7.61]
[1718210704945,106.5985,159.01,158.95,7.61]
[1718210705455,6.5985,159.01,158.96,7.61]
[1718210705661,7.61,158.99,158.89,22.0629]
[1718210705857,7.61,158.99,158.93,7.61]
[1718210706034,7.61,158.99,158.89,15.7659]
[1718210706235,7.61,158.98,158.92,7.61]
[1718210706768,0.34,158.97,158.92,7.61]
[1718210707143,0.17,158.97,158.93,7.61]
[1718210707347,107.95,158.98,158.89,6.297]
[1718210707580,107.95,158.98,158.88,30.44]
[1718210707581,0.17,158.96,158.92,7.61]
[1718210707739,0.34,158.96,158.85,21.79371581]
[1718210707935,0.34,158.96,158.91,7.61]
[1718210709034,0.34,158.96,158.92,7.61]
[1718210709462,0.34,158.96,158.88,6.297]
[1718210709668,7.61,158.95,158.89,7.55246142]
[1718210709968,7.61,158.95,158.85,21.79371581]
[1718210710266,16.5235,158.91,158.86,7.55266104]
[1718210710567,0.17,158.88,158.87,7.55266104]
[1718210710772,7.78,158.88,158.79,6.0205]
[1718210710976,0.17,158.87,158.82,7.61]
[1718210711282,7.78,158.87,158.77,16.5245]
[1718210711452,0.17,158.86,158.81,7.61]
[1718210711643,0.17,158.86,158.82,6.297]
[1718210712353,0.17,158.86,158.77,21.49920106]
[1718210712673,0.17,158.88,158.84,7.61]
[1718210712983,0.17,158.89,158.8,13.907]
[1718210712984,16.5235,158.91,158.87,7.61]
[1718210713545,22.689,158.95,158.9,7.61]
[1718210713747,22.689,158.95,158.91,7.61]
[1718210714865,0.51,158.94,158.91,7.61]
[1718210715553,0.51,158.94,158.81,13.1299]
[1718210715753,0.51,158.94,158.89,7.61]
[1718210720644,100.51,158.94,158.89,7.61]
[1718210720850,0.17,158.92,158.87,7.61]
[1718210721049,8.12,158.92,158.87,7.61]
[1718210721465,0.17,158.91,158.86,6.297]
[1718210721672,0.17,158.9,158.85,7.61]
[1718210721879,0.51,158.9,158.85,7.61]
[1718210722282,100.0,158.88,158.85,7.61]
[1718210722600,8.29,158.87,158.81,7.61]
[1718210722765,8.29,158.87,158.8,7.61]
[1718210722766,7.61,158.86,158.8,7.61]
[1718210722966,0.51,158.85,158.8,7.61]
[1718210723484,0.51,158.85,158.8,13.907]
[1718210723664,0.51,158.85,158.81,7.61]
[1718210724579,0.17,158.87,158.82,7.61]
[1718210724788,0.17,158.87,158.83,7.61]
[1718210725091,6.3911,158.88,158.8,13.907]
[1718210725264,15.3838,158.89,158.86,7.61]
[1718210725458,15.3838,158.89,158.87,7.61]
[1718210725981,29.2541,158.93,158.87,7.61]
[1718210726868,21.6441,158.93,158.82,22.82]
[1718210727270,0.17,158.92,158.82,22.82]
[1718210727463,0.34,158.92,158.82,22.82]
[1718210727666,0.17,158.91,158.82,22.82]
[1718210729092,0.34,158.92,158.82,22.82]
[1718210730382,0.17,158.92,158.83,6.297]
[1718210730583,0.34,158.92,158.83,6.297]
[1718210731700,21.6441,158.93,158.83,6.297]
[1718210732383,21.6441,158.93,158.84,45.0]
[1718210733016,15.6221,158.93,158.84,6.297]
[1718210733394,15.6221,158.93,158.85,45.0]
[1718210733694,15.6221,158.93,158.86,6.297]
[1718210734689,0.17,158.92,158.83,16.4182]
[1718210734995,0.68,158.92,158.83,16.4182]
[1718210735297,0.68,158.92,158.83,22.7152]
[1718210735484,3.0082,158.92,158.83,6.297]
[1718210735697,0.68,158.92,158.83,6.297]
[1718210738772,15.6221,158.93,158.83,6.297]
[1718210739090,15.6221,158.93,158.84,45.0]
[1718210741476,15.6221,158.93,158.85,6.297]
[1718210741676,15.6221,158.93,158.86,45.0]
[1718210744095,15.6221,158.93,158.87,6.297]
[1718210746881,15.6221,158.93,158.86,45.0]
[1718210747077,15.7921,158.93,158.85,6.297]
[1718210747400,15.7921,158.93,158.82,6.444]
[1718210747401,15.6221,158.93,158.82,6.444]
[1718210747579,15.6221,158.93,158.89,7.6]
[1718210748983,15.6221,158.93,158.9,7.6]
[1718210749303,15.6221,158.93,158.84,0.17]
[1718210749512,15.6221,158.93,158.91,7.6]
[1718210749804,15.6221,158.93,158.92,7.6]
[1718210754314,15.6221,158.93,158.88,7.6]
[1718210754516,15.6221,158.93,158.91,7.6]
[1718210755591,15.6221,158.93,158.85,6.297]
[1718210755908,15.6221,158.93,158.9,7.6]
[1718210760018,15.6221,158.93,158.91,7.6]
[1718210760730,15.6221,158.93,158.83,6.297]
[1718210760927,15.6221,158.93,158.91,7.6]
[1718210761113,15.6221,158.93,158.9,7.6]
[1718210761314,15.6221,158.93,158.85,6.297]
[1718210761515,23.2221,158.93,158.87,7.6]
[1718210761734,23.2221,158.93,158.87,13.897]
[1718210762238,15.6221,158.93,158.88,7.6]
[1718210762435,15.6221,158.93,158.9,7.6]
[1718210762628,15.6221,158.93,158.91,7.6]
[1718210763125,15.6221,158.93,158.9,7.6]
[1718210763327,15.6221,158.93,158.92,7.6]
[1718210763716,15.6221,158.93,158.82,11.55861227]
[1718210763717,15.6221,158.93,158.86,6.297]
[1718210764039,15.6221,158.93,158.91,7.6]
[1718210764234,15.6221,158.93,158.86,6.297]
[1718210764235,15.6221,158.93,158.82,11.38861227]
[1718210764437,15.6221,158.93,158.88,7.6]
[1718210764731,15.6221,158.93,158.82,4.94461227]
[1718210764732,14.4368,158.92,158.82,4.94461227]
[1718210764936,14.4368,158.92,158.79,15.9475]
[1718210764937,0.17,158.9,158.79,15.9475]
[1718210765235,7.6,158.89,158.84,13.897]
[1718210765536,7.94,158.9,158.84,7.6]
[1718210766023,0.17,158.88,158.84,7.6]
[1718210766337,0.34,158.88,158.84,7.6]
[1718210766929,0.34,158.89,158.84,7.6]
[1718210767113,0.17,158.89,158.85,7.6]
[1718210767316,0.17,158.89,158.79,20.94006768]
[1718210767524,0.17,158.89,158.85,7.6]
[1718210768050,0.17,158.89,158.8,30.4]
[1718210768244,0.17,158.89,158.85,7.6]
[1718210769925,0.17,158.89,158.8,30.4]
[1718210770132,0.17,158.87,158.83,7.6]
[1718210770332,0.34,158.87,158.83,7.6]
[1718210771343,7.94,158.87,158.77,6.297]
[1718210771533,7.6,158.86,158.77,6.297]
[1718210771947,7.6,158.86,158.75,16.5435]
[1718210772123,100.17,158.85,158.75,16.5435]
[1718210772325,0.17,158.83,158.78,13.897]
[1718210773018,0.17,158.83,158.79,7.6]
[1718210773629,7.6,158.85,158.8,7.6]
[1718210773829,7.6,158.86,158.81,7.6]
[1718210774139,14.4125,158.87,158.81,7.6]
[1718210774341,0.51,158.86,158.81,7.6]
[1718210774645,0.51,158.86,158.76,6.297]
[1718210774824,8.11,158.86,158.76,6.297]
[1718210775029,8.11,158.86,158.81,7.6]
[1718210775233,8.11,158.86,158.76,6.297]
[1718210775426,8.11,158.86,158.81,7.6]
[1718210775731,8.11,158.86,158.8,7.6]
[1718210775930,0.17,158.85,158.8,7.6]
[1718210776438,7.77,158.84,158.76,6.297]
[1718210776650,15.9725,158.83,158.78,13.897]
[1718210776826,15.9725,158.83,158.74,6.054]
[1718210777134,15.9725,158.83,158.75,6.297]
[1718210778329,0.51,158.82,158.74,6.297]
[1718210780851,0.17,158.82,158.74,6.297]
[1718210781054,15.9725,158.83,158.74,6.297]
[1718210782454,0.34,158.82,158.74,6.297]
[1718210783443,0.17,158.8,158.74,6.297]
[1718210783753,0.17,158.8,158.71,15.829]
[1718210783754,0.34,158.8,158.71,6.297]
[1718210783956,16.4864,158.79,158.71,6.297]
[1718210785255,0.17,158.78,158.69,5.03483463]
[1718210785568,0.51,158.78,158.67,29.147]
[1718210785857,0.17,158.77,158.67,29.147]
[1718210786048,0.17,158.76,158.67,29.147]
[1718210786233,0.34,158.76,158.67,29.147]
[1718210788344,0.34,158.76,158.67,34.12583064]
[1718210788535,0.17,158.75,158.67,34.12583064]
[1718210788736,0.17,158.74,158.67,34.12583064]
[1718210788954,0.17,158.76,158.67,34.12583064]
[1718210789164,0.17,158.75,158.67,34.12583064]
[1718210790251,6.8024,158.75,158.67,34.12583064]
[1718210790565,6.6324,158.75,158.67,34.12583064]
[1718210795336,15.113,158.73,158.65,6.297]
[1718210795669,15.113,158.73,158.65,49.147]
[1718210796746,15.113,158.73,158.65,29.147]
[1718210798978,15.113,158.73,158.71,7.62]
[1718210799471,15.113,158.73,158.65,6.297]
[1718210799648,15.113,158.73,158.72,7.62]
[1718210799846,6.6324,158.75,158.72,7.62]
[1718210800451,16.584,158.77,158.74,7.62]
[1718210801172,16.584,158.77,158.76,7.62]
[1718210803474,15.9562,158.81,158.76,7.62]
[1718210803668,15.9562,158.81,158.78,7.62]
[1718210804080,6.4699,158.83,158.8,7.62]
[1718210804285,15.9562,158.85,158.82,7.62]
[1718210804475,15.9562,158.85,158.72,30.65]
[1718210804476,15.9562,158.85,158.72,6.474]
[1718210804674,15.9562,158.85,158.8,7.62]
[1718210805067,23.5762,158.85,158.74,6.304]
[1718210805271,23.5762,158.85,158.79,7.62]
[1718210806586,0.34,158.84,158.79,7.62]
[1718210807090,15.9562,158.85,158.8,7.62]
[1718210807263,15.9562,158.85,158.82,7.62]
[1718210808572,0.34,158.84,158.81,7.62]
[1718210809089,15.9562,158.85,158.81,7.62]
[1718210809480,15.9562,158.85,158.82,7.62]
[1718210810185,15.9562,158.85,158.83,7.62]
[1718210814301,15.9562,158.85,158.84,7.62]
[1718210815574,2.3285,158.9,158.84,7.62]
[1718210815575,15.1059,158.88,158.84,7.62]
[1718210815769,15.1059,158.88,158.81,6.304]
[1718210816081,15.1059,158.88,158.85,7.62]
[1718210816596,15.1059,158.88,158.86,7.62]
[1718210819001,15.1059,158.88,158.85,7.62]
[1718210820400,15.1059,158.88,158.86,7.62]
[1718210820588,15.1059,158.88,158.85,7.62]
[1718210821790,15.1059,158.88,158.81,6.304]
[1718210822103,15.1059,158.88,158.85,7.62]
[1718210822407,0.17,158.87,158.82,7.62]
[1718210822589,0.34,158.87,158.82,7.62]
[1718210823130,0.17,158.85,158.8,7.62]
[1718210823295,0.17,158.85,158.74,6.2141]
[1718210823296,6.0924,158.84,158.74,6.2141]
[1718210823601,13.7124,158.84,158.78,7.62]
[1718210823906,6.0924,158.84,158.79,7.62]
[1718210824398,6.0924,158.84,158.8,7.62]
[1718210824709,0.34,158.85,158.8,7.62]
[1718210824902,0.34,158.85,158.81,7.62]
[1718210825088,0.34,158.85,158.82,7.62]
[1718210825483,0.34,158.85,158.8,7.62]
[1718210826110,0.34,158.85,158.81,7.62]
[1718210826314,0.34,158.86,158.81,7.62]
[1718210826505,0.17,158.86,158.82,7.62]
[1718210826687,0.34,158.86,158.82,7.62]
[1718210827592,7.62,158.87,158.82,7.62]
[1718210827907,0.17,158.87,158.82,7.62]
[1718210828129,0.51,158.87,158.82,7.62]
[1718210829323,10.4589,158.87,158.81,7.62]
[1718210829485,0.17,158.86,158.81,7.62]
[1718210830098,7.79,158.86,158.8,7.62]
[1718210830300,0.34,158.85,158.74,11.17675036]
[1718210830508,0.17,158.83,158.79,7.62]
[1718210830888,0.17,158.81,158.73,6.304]
[1718210831089,0.34,158.81,158.76,7.62]
[1718210836316,0.34,158.81,158.77,7.62]
[1718210837102,15.6349,158.82,158.77,7.62]
[1718210837417,15.6349,158.82,158.8,7.62]
[1718210840001,7.62,158.86,158.8,7.62]
[1718210840211,0.51,158.85,158.81,7.62]
[1718210840413,20.51,158.85,158.81,7.62]
[1718210840714,20.51,158.85,158.8,7.62]
[1718210841830,15.0689,158.86,158.74,16.358]
[1718210842128,15.0689,158.86,158.83,7.62]
[1718210842503,15.0689,158.86,158.82,7.62]
[1718210843143,15.0689,158.86,158.75,45.51]
[1718210843432,15.0689,158.86,158.82,7.62]
[1718210843624,15.0689,158.86,158.76,20.0]
[1718210843934,15.0689,158.86,158.82,7.62]
[1718210844308,15.0689,158.86,158.81,7.62]
[1718210844643,0.34,158.85,158.8,7.62]
[1718210845130,0.34,158.85,158.81,7.62]
[1718210846134,0.34,158.85,158.76,20.0]
[1718210846135,0.34,158.85,158.82,7.62]
[1718210846426,15.0689,158.86,158.83,7.62]
[1718210847425,15.0689,158.86,158.84,7.62]
[1718210848212,15.0689,158.86,158.77,6.304]
[1718210848430,15.0689,158.86,158.83,7.62]
[1718210849423,15.0689,158.86,158.82,7.62]
[1718210850206,15.0689,158.86,158.83,7.62]
[1718210850408,15.0689,158.86,158.84,7.62]
[1718210851637,0.17,158.89,158.84,7.62]
[1718210851805,0.68,158.89,158.85,7.62]
[1718210852228,0.68,158.89,158.86,7.62]
[1718210854429,0.17,158.86,158.77,7.62]
[1718210854608,7.62,158.85,158.79,7.62]
[1718210854925,0.68,158.84,158.79,7.62]
[1718210855131,0.68,158.84,158.73,6.304]
[1718210855308,0.68,158.84,158.79,7.62]
[1718210857018,0.17,158.82,158.77,7.62]
[1718210857230,0.68,158.82,158.78,7.62]
[1718210857404,0.17,158.82,158.77,7.62]
[1718210857608,0.68,158.82,158.78,7.62]
[1718210857811,0.51,158.82,158.78,7.62]
[1718210858011,0.17,158.82,158.78,7.62]
[1718210858309,107.79,158.81,158.7,15.5221]
[1718210858504,0.17,158.79,158.75,7.62]
[1718210859029,0.17,158.79,158.72,30.48]
[1718210859234,0.17,158.8,158.72,30.48]
[1718210859438,0.34,158.81,158.73,6.304]
[1718210860212,22.2622,158.82,158.79,7.62]
[1718210860726,22.2622,158.82,158.78,7.62]
[1718210861225,22.2622,158.82,158.72,22.85]
[1718210861432,22.2622,158.82,158.73,51.304]
[1718210862021,0.17,158.81,158.73,6.304]
[1718210862222,0.34,158.81,158.73,6.304]
[1718210864840,22.2622,158.82,158.73,6.304]
[1718210865226,22.2622,158.82,158.74,45.0]
[1718210872531,15.7523,158.82,158.74,45.0]
[1718210872743,15.7523,158.82,158.75,20.0]
[1718210874036,15.7523,158.82,158.74,45.0]
[1718210874334,15.7523,158.82,158.75,20.0]
[1718210876235,22.5516,158.86,158.76,45.0]
[1718210876460,22.5516,158.86,158.77,20.0]
[1718210877344,0.17,158.85,158.77,20.0]
[1718210877549,0.68,158.85,158.76,20.0]
[1718210878056,0.51,158.85,158.76,20.0]
[1718210880266,0.17,158.85,158.76,20.0]
[1718210880556,22.7216,158.86,158.76,20.0]
[1718210881439,22.5516,158.86,158.76,20.0]
[1718210881635,22.5516,158.86,158.77,45.0]
[1718210881834,22.5516,158.86,158.78,49.154]
[1718210882038,22.5516,158.86,158.79,45.0]
[1718210882254,22.5516,158.86,158.8,20.0]
[1718210882761,16.0573,158.86,158.8,20.0]
[1718210883056,16.0573,158.86,158.84,7.61]
[1718210886148,16.0573,158.86,158.8,20.0]
[1718210886455,23.6673,158.86,158.8,7.61]
[1718210887367,23.6673,158.86,158.8,13.914]
[1718210887665,16.0573,158.86,158.81,7.61]
[1718210888063,16.0573,158.86,158.82,7.61]
[1718210890547,16.0573,158.86,158.84,7.61]
[1718210891447,16.0573,158.86,158.85,7.61]
[1718210891651,21.3774,158.9,158.85,7.61]
[1718210891865,21.3774,158.9,158.86,7.61]
[1718210892576,21.3774,158.9,158.85,7.61]
[1718210892965,21.3774,158.9,158.8,36.744]
[1718210893172,21.3774,158.9,158.85,7.61]
[1718210893675,21.3774,158.9,158.86,7.61]
[1718210894971,21.3774,158.9,158.81,45.0]
[1718210895173,21.3774,158.9,158.86,7.61]
[1718210897171,21.3774,158.9,158.87,7.61]
[1718210898760,0.17,158.89,158.79,6.6037]
[1718210898964,4.9973,158.89,158.8,65.0]
[1718210899277,9.939,158.87,158.81,7.61]
[1718210899763,7.61,158.86,158.74,12.6814]
[1718210899965,7.61,158.87,158.81,7.61]
[1718210900564,7.61,158.87,158.8,6.304]
[1718210900765,0.34,158.86,158.81,7.61]
[1718210901384,0.17,158.87,158.82,7.61]
[1718210901694,0.34,158.88,158.83,7.61]
[1718210902073,0.34,158.89,158.83,7.61]
[1718210902283,20.34,158.89,158.84,7.61]
[1718210902474,20.34,158.89,158.85,7.61]
[1718210904092,21.3774,158.9,158.87,7.61]
[1718210904887,21.3774,158.9,158.86,7.61]
[1718210906371,15.2763,158.9,158.86,7.61]
[1718210906573,15.2763,158.9,158.87,7.61]
[1718210908701,15.2763,158.9,158.86,7.61]
[1718210908874,15.2763,158.9,158.81,6.304]
[1718210909082,15.2763,158.9,158.86,7.61]
[1718210909494,15.2763,158.9,158.82,45.0]
[1718210909677,15.2763,158.9,158.86,7.61]
[1718210911201,15.2763,158.9,158.81,6.304]
[1718210911496,15.2763,158.9,158.86,7.61]
[1718210912502,15.2763,158.9,158.82,20.0]
[1718210912503,15.2763,158.9,158.85,7.61]
[1718210913089,8.12,158.89,158.82,20.0]
[1718210913276,8.12,158.89,158.83,7.61]
[1718210914205,0.17,158.89,158.8,33.914]